bitfinex/quotes_ETHUSD_20220103
["timestamp","ask_amount","ask_price","bid_price","bid_amount"]
[1641221932246,1.31457,3803.9,3803.3,0.00511581]
[1641221932645,1.31457,3803.9,3803.3,0.30511581]
[1641221933046,1.27631781,3803.8,3803.4,0.00454739]
[1641221933246,1.93354781,3803.8,3803.4,0.00454739]
[1641221933853,1.93354781,3803.8,3803.1,0.00625266]
[1641221934350,1.93354781,3803.8,3803.1,0.30625266]
[1641221934591,2.97157709,3803.7,3803.1,0.30625266]
[1641221934793,2.97157709,3803.7,3803.2,0.00568424]
[1641221934993,2.97157709,3803.7,3803.3,0.65716]
[1641221935195,2.97157709,3803.7,3803.3,0.95716]
[1641221935395,2.97157709,3803.7,3803.4,0.00454739]
[1641221936995,2.97157709,3803.7,3803.2,0.00568424]
[1641221938445,2.97157709,3803.7,3803.3,0.65716]
[1641221938645,2.97157709,3803.7,3803.3,0.95716]
[1641221938847,2.97157709,3803.7,3803.4,0.00454739]
[1641221940346,2.97157709,3803.9,3803.4,0.00454739]
[1641221940746,2.97157709,3803.9,3803.5,0.00115079]
[1641221941045,2.97157709,3803.9,3803.6,0.00341054]
[1641221942483,0.65716,3804.0,3803.6,0.00341054]
[1641221943889,2.97139134,3803.9,3803.6,0.00341054]
[1641221944087,4.28578134,3803.9,3803.6,0.00341054]
[1641221944290,4.94300134,3803.9,3803.6,0.00341054]
[1641221944490,2.97139134,3803.9,3803.6,0.00341054]
[1641221945757,0.65716,3804.0,3803.6,0.00341054]
[1641221946548,2.97137651,3803.9,3803.6,0.00341054]
[1641221946751,3.62859651,3803.9,3803.6,0.00341054]
[1641221947751,0.65722,3803.9,3803.6,0.00341054]
[1641221947953,0.3,3804.1,3803.6,0.00341054]
[1641221949354,0.3,3804.1,3803.6,0.33192474]
[1641221949596,0.3,3804.1,3803.8,0.65705]
[1641221949993,0.3,3804.1,3803.9,0.00170527]
[1641221950596,0.3,3804.1,3803.8,1.0]
[1641221950795,0.3,3804.1,3803.7,1.58281527]
[1641221951199,0.3,3804.1,3803.9,1.6594541]
[1641221951400,0.0001,3804.1,3804.0,9.15]
[1641221951802,0.00123684,3804.1,3803.9,1.0349478]
[1641221952002,0.00123684,3804.1,3804.0,5.3539224]
[1641221952205,0.00123684,3804.1,3804.0,5.9539224]
[1641221952406,0.00123684,3804.1,3804.0,0.6039224]
[1641221953443,0.00123684,3804.1,3804.0,1.95468196]
[1641221953645,0.00123684,3804.1,3804.0,2.95468196]
[1641221953845,0.00123684,3804.1,3804.0,5.55468196]
[1641221954146,0.00123684,3804.1,3804.0,4.2039224]
[1641221955347,0.00123684,3804.1,3804.0,3.2039224]
[1641221957800,0.00123684,3804.1,3804.0,2.9039224]
[1641221958001,0.00123684,3804.1,3804.0,2.6039224]
[1641221960007,0.00123684,3804.1,3804.0,2.9039224]
[1641221961743,0.00123684,3804.1,3804.0,3.2039224]
[1641221962548,0.00123684,3804.1,3804.0,3.5609624]
[1641221963045,0.01156218,3804.1,3804.0,3.8609624]
[1641221964050,0.01156218,3804.1,3804.0,4.93755527]
[1641221965099,0.01156218,3804.1,3804.0,3.8609624]
[1641221967300,1.31406,3804.8,3804.1,4.75]
[1641221967501,0.65702,3804.7,3804.3,0.95703]
[1641221967704,0.66043054,3804.7,3804.3,0.95703]
[1641221968348,0.66043054,3804.7,3804.3,1.2855304]
[1641221968750,0.00341054,3804.7,3804.3,0.95703]
[1641221969851,0.00341054,3804.7,3804.3,1.25703]
[1641221971055,0.00341054,3804.7,3804.5,0.657]
[1641221971456,0.00341054,3804.7,3804.3,0.3]
[1641221971654,0.00341054,3804.7,3804.5,0.3]
[1641221972002,0.00341054,3804.7,3804.0,4.2179524]
[1641221972606,0.65708,3804.6,3804.0,4.2179524]
[1641221972811,0.65708,3804.6,3804.0,4.5179524]
[1641221973005,0.0022737,3804.5,3804.0,4.5179524]
[1641221973604,0.00170527,3804.4,3804.0,2.9039224]
[1641221973808,0.65881527,3804.4,3804.0,2.6039224]
[1641221974012,0.00113685,3804.3,3804.0,2.6039224]
[1641221975014,1.31561685,3804.3,3804.0,2.6039224]
[1641221975611,0.65837685,3804.3,3804.0,2.6039224]
[1641221975842,3.63046563,3804.3,3804.0,2.6039224]
[1641221976447,1.31557725,3804.3,3804.0,2.6039224]
[1641221977450,1.97276725,3804.3,3804.0,2.6039224]
[1641221978251,1.31556685,3804.3,3804.0,2.6039224]
[1641221978550,0.65837685,3804.3,3804.0,2.6039224]
[1641221978752,0.00113685,3804.3,3804.0,3.2039224]
[1641221978951,0.00113685,3804.3,3804.0,2.9039224]
[1641221980100,0.00113685,3804.3,3804.0,3.2609924]
[1641221980503,0.00113685,3804.3,3804.0,3.5609924]
[1641221980903,0.00113685,3804.3,3804.0,2.6039224]
[1641221981104,0.65827685,3804.3,3804.0,2.6039224]
[1641221982004,1.31545685,3804.3,3804.0,2.6039224]
[1641221982207,0.65827685,3804.3,3804.0,2.6039224]
[1641221983449,0.65827685,3804.3,3804.0,1.6039224]
[1641221984649,0.65827685,3804.3,3804.0,1.2424688]
[1641221985151,1.31545685,3804.3,3804.0,1.2424688]
[1641221985355,1.97266045,3804.3,3804.0,1.2424688]
[1641221985554,1.97266045,3804.3,3804.1,0.00129597]
[1641221986255,2.20996405,3804.2,3804.1,0.00129597]
[1641221986999,5.18205088,3804.2,3804.1,0.00129597]
[1641221987401,2.97208683,3804.2,3804.1,0.00129597]
[1641221987805,5.13329393,3804.2,3804.1,0.00129597]
[1641221990209,5.13135026,3804.2,3804.1,0.00129597]
[1641221991859,5.81768162,3804.2,3804.1,0.00129597]
[1641221992465,2.84559479,3804.2,3804.1,0.00129597]
[1641221993365,5.81784216,3804.2,3804.1,0.00129597]
[1641221993570,3.65857873,3804.2,3804.1,0.00129597]
[1641221993767,2.8646807,3804.2,3804.1,0.00129597]
[1641221994602,0.68633136,3804.2,3804.1,0.00129597]
[1641221996409,2.83664506,3804.2,3804.1,0.00129597]
[1641221996605,0.68633136,3804.2,3804.1,0.00129597]
[1641221997607,0.68633136,3804.2,3804.1,1.30129597]
[1641221997608,1.34359136,3804.2,3804.1,1.30129597]
[1641221998243,0.68633136,3804.2,3804.1,1.30129597]
[1641222000453,0.00113685,3804.3,3804.1,1.60129597]
[1641222000660,0.00113685,3804.3,3804.1,1.90129597]
[1641222001459,0.00113685,3804.3,3804.2,8.00703]
[1641222002907,0.00113685,3804.3,3804.2,0.65703]
[1641222003108,0.00113685,3804.3,3804.2,4.60703]
[1641222003313,0.00113685,3804.3,3804.2,4.30703]
[1641222003513,0.00113685,3804.3,3804.2,0.65703]
[1641222003717,0.00113685,3804.3,3804.1,1.30129597]
[1641222003916,0.65703,3804.2,3804.1,1.30129597]
[1641222004118,0.65703,3804.2,3804.1,0.00129597]
[1641222004715,1.83254898,3804.2,3804.1,0.00129597]
[1641222005117,0.65703,3804.2,3804.1,0.00129597]
[1641222005756,3.6285136,3804.2,3804.1,0.00129597]
[1641222007470,4.9285136,3804.2,3804.1,0.00129597]
[1641222008169,7.61282568,3804.2,3804.1,0.00129597]
[1641222008369,7.61282568,3804.2,3802.7,0.00252066]
[1641222008370,9.15,3804.1,3802.7,0.00252066]
[1641222008668,0.65744,3803.1,3802.6,0.01482611]
[1641222008868,0.65744,3803.1,3802.8,0.0073895]
[1641222009067,0.65744,3803.1,3802.7,0.00795793]
[1641222009508,0.65744,3803.1,3802.8,0.01294819]
[1641222009708,0.65744,3803.1,3802.8,0.02589638]
[1641222009907,0.65746,3802.9,3802.8,0.02589638]
[1641222010308,0.65746,3802.9,3802.8,0.03328588]
[1641222013475,0.65744,3803.1,3802.8,0.03328588]
[1641222013675,1.89784343,3803.2,3802.8,0.03328588]
[1641222013676,1.24045343,3803.2,3802.8,0.03328588]
[1641222013874,1.24045343,3803.2,3802.9,0.00682108]
[1641222014074,0.65734,3803.4,3802.9,0.00682108]
[1641222014373,6.45636888,3804.2,3802.9,0.00682108]
[1641222014577,0.65727,3803.8,3802.9,0.00682108]
[1641222014774,0.65727,3803.8,3803.2,0.01294819]
[1641222014775,0.65731,3803.5,3803.2,0.01294819]
[1641222015076,1.03649102,3803.9,3803.4,0.01294819]
[1641222015274,0.68634708,3803.8,3803.4,0.01294819]
[1641222015476,0.68634708,3803.8,3803.5,0.00341054]
[1641222015676,1.34361708,3803.8,3803.5,0.00341054]
[1641222016879,0.68634708,3803.8,3803.5,0.00341054]
[1641222017103,0.65723,3803.9,3803.5,0.00341054]
[1641222017303,0.71843,3804.2,3803.5,0.00341054]
[1641222017501,0.71843,3804.2,3802.9,0.378]
[1641222017502,0.65703,3804.2,3802.9,0.30730692]
[1641222017902,0.00341054,3804.1,3803.4,0.65716]
[1641222018110,0.00341054,3804.1,3803.0,1.31716212]
[1641222018308,0.00284212,3804.0,3803.1,0.6285679]
[1641222018506,0.00284212,3804.0,3803.1,0.93084159]
[1641222018705,0.0022737,3803.9,3803.2,0.00170527]
[1641222018906,0.0022737,3803.9,3803.4,0.65717]
[1641222019107,0.65703,3804.2,3803.4,0.65717]
[1641222019108,0.00170527,3803.8,3803.4,0.65717]
[1641222019306,0.00170527,3803.8,3803.4,0.4857104]
[1641222019505,0.65703,3804.2,3803.4,0.4857104]
[1641222019506,0.00113685,3803.7,3803.4,0.3285404]
[1641222019710,0.00113685,3803.7,3803.3,1.31421]
[1641222020007,0.00113685,3803.7,3803.6,9.80708]
[1641222020208,0.01086897,3803.7,3803.6,10.18508]
[1641222020407,0.01086897,3803.7,3803.6,11.48508]
[1641222020608,0.01086897,3803.7,3803.6,11.78508]
[1641222021357,0.65703,3804.2,3804.1,9.95388124]
[1641222021553,0.65703,3804.2,3804.1,1.65589712]
[1641222021754,0.65703,3804.2,3804.1,1.95589712]
[1641222021955,0.38870994,3804.7,3804.2,0.37767]
[1641222022157,0.38870994,3804.7,3804.3,0.378]
[1641222022356,0.45,3805.0,3804.6,9.15]
[1641222022555,0.45,3805.0,3804.7,1.378]
[1641222022754,0.00170527,3804.9,3804.8,8.78129312]
[1641222022955,0.00170527,3804.9,3804.8,1.45929312]
[1641222023155,0.00170527,3804.9,3804.8,1.75929312]
[1641222023353,0.00170527,3804.9,3804.8,1.33475]
[1641222023956,0.00170527,3804.9,3804.8,1.03475]
[1641222024159,0.00170527,3804.9,3804.5,3.56717734]
[1641222024604,0.84931928,3805.0,3804.5,3.56717734]
[1641222024605,0.00113685,3804.8,3804.5,3.56717734]
[1641222025205,0.00113685,3804.8,3804.5,3.86717734]
[1641222025408,0.00113685,3804.8,3804.5,4.16717734]
[1641222025606,0.00113685,3804.8,3804.6,2.00462226]
[1641222025808,0.00113685,3804.8,3804.6,1.38262226]
[1641222026009,0.00113685,3804.8,3804.6,1.98262226]
[1641222026209,0.00113685,3804.8,3804.6,2.63955226]
[1641222026808,0.00469243,3804.8,3804.6,1.63493]
[1641222027009,0.01032355,3804.7,3804.6,5.18493]
[1641222027709,0.01032355,3804.7,3804.6,6.18493]
[1641222027909,0.01032355,3804.7,3804.6,8.23493]
[1641222029261,0.01032355,3804.7,3804.6,11.80210734]
[1641222029459,2.355e-05,3804.7,3804.6,11.80210734]
[1641222029660,0.06266341,3805.2,3804.8,5.5]
[1641222029862,7.28443609,3807.0,3805.8,0.65671]
[1641222029863,2.48783609,3807.0,3805.8,0.65671]
[1641222030064,2.48783609,3807.0,3805.8,0.8135]
[1641222030262,2.48783609,3807.0,3805.8,1.1135]
[1641222030460,2.48783609,3807.0,3805.8,1.4135]
[1641222030662,0.65663,3807.5,3805.8,1.4135]
[1641222030863,1.65951018,3807.8,3806.3,1.32298588]
[1641222031065,0.01193689,3806.9,3806.4,0.378]
[1641222031268,0.01193689,3806.9,3806.4,0.678]
[1641222031464,0.01136847,3806.8,3806.4,0.678]
[1641222032010,0.01080004,3806.7,3806.5,0.3282637]
[1641222032206,0.01080004,3806.7,3806.6,10.1845]
[1641222032503,0.062539,3808.0,3806.6,11.53108216]
[1641222032709,0.062539,3808.0,3806.6,10.87458216]
[1641222032902,0.062539,3808.0,3806.7,1.0]
[1641222033102,0.062539,3808.0,3806.8,2.7211438]
[1641222033308,0.00909482,3808.3,3807.2,0.3282191]
[1641222033508,0.00909482,3808.3,3807.2,1.2846591]
[1641222033706,0.05008946,3808.0,3807.2,1.5846591]
[1641222033908,0.05008946,3808.0,3807.2,0.6]
[1641222034110,0.00682112,3807.9,3807.2,0.3]
[1641222034407,0.05008946,3808.0,3807.5,0.3281893]
[1641222034408,0.0062527,3807.8,3807.5,0.3281893]
[1641222034609,0.0062527,3807.8,3807.6,0.378]
[1641222034808,8.428e-05,3807.7,3807.6,10.7762101]
[1641222035009,6.21,3808.6,3807.6,10.16100595]
[1641222035217,0.00122112,3807.9,3807.7,1.0]
[1641222035412,0.00122112,3807.9,3807.8,0.378]
[1641222035612,0.00122112,3807.9,3807.8,0.40862275]
[1641222035872,0.00122112,3807.9,3807.8,0.978]
[1641222035873,0.00113684,3807.9,3807.8,0.978]
[1641222037174,0.00113684,3807.9,3807.4,0.06253699]
[1641222037374,1.2951892,3807.7,3807.4,0.06253699]
[1641222037574,0.00113684,3807.9,3807.4,0.06253699]
[1641222037575,0.00113684,3807.9,3807.5,0.00113685]
[1641222038177,2.96889931,3807.6,3807.5,0.00113685]
[1641222038384,0.00113684,3807.9,3807.6,9.15]
[1641222038582,1.65951018,3808.5,3807.9,9.15]
[1641222038883,2.48783609,3808.7,3808.2,0.01201665]
[1641222039180,0.00397897,3808.6,3808.3,0.378]
[1641222039380,0.00397897,3808.6,3808.3,0.640453]
[1641222039611,0.00341055,3808.5,3808.3,0.97775011]
[1641222039811,0.00341055,3808.5,3808.3,1.27775011]
[1641222040011,0.00284212,3808.4,3808.3,1.93297459]
[1641222040211,0.00284212,3808.4,3808.3,2.19542759]
[1641222040817,0.00284212,3808.4,3808.3,0.902906]
[1641222041012,0.00284212,3808.4,3807.8,7.56407734]
[1641222041013,0.00284212,3808.4,3807.9,3.639]
[1641222041211,0.00284212,3808.4,3807.8,3.56717734]
[1641222041412,2.71205827,3808.9,3807.8,3.56717734]
[1641222041413,0.0022737,3808.3,3807.8,3.56717734]
[1641222041814,0.00170527,3808.2,3807.7,0.06367293]
[1641222042214,1.18730556,3809.0,3807.7,0.06367293]
[1641222042215,3.35251059,3809.0,3808.3,2.59829473]
[1641222042615,0.00397897,3808.9,3808.3,2.89829473]
[1641222042815,0.00397897,3808.9,3808.3,2.89978366]
[1641222043018,1.18730556,3809.0,3808.3,2.89978366]
[1641222043019,0.00341055,3808.8,3808.3,3.19978366]
[1641222043456,2.20208081,3808.9,3808.3,3.19978366]
[1641222043457,0.00284212,3808.7,3808.3,3.19978366]
[1641222043856,0.0022737,3808.6,3808.3,3.19978366]
[1641222044257,0.00170528,3808.5,3808.3,3.19978366]
[1641222044659,0.00113685,3808.4,3808.3,3.19978366]
[1641222045059,0.00113685,3808.4,3808.3,2.59978366]
[1641222046260,0.00113685,3808.4,3808.3,3.19978366]
[1641222048129,0.00113685,3808.4,3808.3,2.89978366]
[1641222048334,0.00113685,3808.4,3808.3,2.59978366]
[1641222048732,1.31021908,3808.4,3808.3,2.59978366]
[1641222048933,4.44544225,3808.4,3808.3,2.59978366]
[1641222049132,4.44544225,3808.4,3807.8,0.00376262]
[1641222049133,7.67861944,3808.3,3807.8,0.00376262]
[1641222049333,2.54251853,3808.2,3807.8,0.00376262]
[1641222049532,1.0,3808.1,3807.9,0.00170527]
[1641222049732,2.27386969,3808.0,3807.9,0.00170527]
[1641222049932,0.6567,3808.1,3807.9,0.00170527]
[1641222050135,0.67861944,3808.3,3807.9,0.00170527]
[1641222050333,2.87516228,3808.3,3807.9,0.00170527]
[1641222050960,0.67861944,3808.3,3807.9,0.00170527]
[1641222051760,0.67861944,3808.3,3807.9,2.60170527]
[1641222052159,0.67861944,3808.3,3808.0,0.00113684]
[1641222052764,0.04002402,3808.2,3808.0,0.00113684]
[1641222053566,0.04002402,3808.2,3808.1,0.00130619]
[1641222054365,7.15811646,3808.2,3808.1,0.00130619]
[1641222054613,2.20811646,3808.2,3808.1,0.00130619]
[1641222054816,2.23378951,3808.2,3808.1,0.00130619]
[1641222055018,0.04002402,3808.2,3808.1,0.00130619]
[1641222055717,0.66864346,3808.3,3808.1,0.00130619]
[1641222056719,1.32519346,3808.3,3808.1,0.00130619]
[1641222057722,1.27519346,3808.3,3808.1,0.00130619]
[1641222058125,0.66864346,3808.3,3808.1,0.00130619]
[1641222058778,0.03201186,3808.2,3808.1,1.16987199]
[1641222058971,0.03201186,3808.2,3808.1,1.54787199]
[1641222059172,0.03201186,3808.2,3808.1,1.84787199]
[1641222059374,0.00113685,3808.4,3808.1,0.71016753]
[1641222059572,0.00113685,3808.4,3808.1,0.67930619]
[1641222059774,0.00113685,3808.4,3808.1,0.30130619]
[1641222060173,1.31278,3808.3,3808.1,0.30130619]
[1641222060474,0.00113685,3808.4,3808.1,0.30130619]
[1641222061477,0.00113685,3808.4,3808.2,0.378]
[1641222062713,0.00113685,3808.4,3808.2,0.41275691]
[1641222062911,0.00113685,3808.4,3808.2,0.378]
[1641222064221,0.00113685,3808.4,3808.3,8.15113807]
[1641222064424,0.00113685,3808.4,3808.3,8.15227614]
[1641222064623,0.00113685,3808.4,3808.3,1.33524615]
[1641222065021,0.00113685,3808.4,3808.3,0.00227614]
[1641222065220,0.00113685,3808.4,3808.3,0.30227614]
[1641222065867,0.00113685,3808.4,3808.3,0.00227614]
[1641222066067,0.00113685,3808.4,3808.3,0.30227614]
[1641222066469,0.00113685,3808.4,3808.3,0.00227614]
[1641222066674,0.00113685,3808.4,3808.3,0.30227614]
[1641222067069,0.00113685,3808.4,3808.3,0.00227614]
[1641222067269,0.00113685,3808.4,3808.3,0.33561886]
[1641222067469,0.00113685,3808.4,3808.3,0.30227614]
[1641222067871,0.00113685,3808.4,3808.3,0.00227614]
[1641222068073,0.00113685,3808.4,3808.3,0.30227614]
[1641222068476,0.00113685,3808.4,3808.3,0.00227614]
[1641222068677,0.00113685,3808.4,3808.3,0.33985366]
[1641222068878,0.00113685,3808.4,3808.3,0.30227614]
[1641222069082,0.00113685,3808.4,3808.3,0.00227614]
[1641222069284,0.01403953,3808.4,3808.0,0.06355226]
[1641222069507,1.3129025,3808.3,3808.0,0.06355226]
[1641222069705,0.65652,3808.2,3808.0,0.06355226]
[1641222070710,1.31304,3808.2,3808.0,0.06355226]
[1641222071107,5.35,3808.1,3807.9,1.8831177]
[1641222071311,0.65665,3807.1,3806.1,7.9843]
[1641222071509,1.96993,3807.7,3806.1,3.6705]
[1641222071510,2.23147989,3807.0,3806.1,3.6705]
[1641222071710,2.23147989,3807.0,3805.9,3.0376]
[1641222071711,1.31341,3806.9,3806.2,0.01023162]
[1641222072110,1.31341,3806.9,3805.9,3.0376]
[1641222072111,1.31341,3806.9,3806.0,0.01136847]
[1641222072315,0.65669,3806.6,3806.1,0.378]
[1641222073373,0.65669,3806.6,3806.1,0.71323976]
[1641222073571,1.3134,3807.0,3806.1,0.71323976]
[1641222073572,0.65658,3807.0,3806.5,4.729]
[1641222073773,1.31274,3808.9,3806.6,0.378]
[1641222074072,1.31274,3808.9,3807.5,4.729]
[1641222074073,0.00170527,3808.3,3807.5,4.729]
[1641222074271,0.00170527,3808.3,3807.5,0.733]
[1641222074476,0.06289031,3809.1,3807.6,1.1991425]
[1641222074477,0.00113684,3808.2,3807.6,1.1991425]
[1641222074670,0.00113684,3808.2,3808.1,10.4192722]
[1641222074872,0.00568423,3809.0,3808.1,9.41759248]
[1641222075072,0.00113684,3808.2,3808.1,9.71759248]
[1641222075271,0.00511581,3808.9,3808.1,9.71759248]
[1641222075474,0.00113684,3808.2,3808.1,0.71759248]
[1641222076374,0.00113684,3808.2,3808.1,0.678]
[1641222079313,0.00113684,3808.2,3808.1,0.71202375]
[1641222079516,0.00113684,3808.2,3808.1,0.41202375]
[1641222079714,0.00113684,3808.2,3807.8,1.80520958]
[1641222080318,0.00113684,3808.2,3807.8,0.06288759]
[1641222081266,1.31292,3808.1,3807.8,0.06288759]
[1641222081463,1.96941,3808.1,3807.8,0.06288759]
[1641222081671,2.96846954,3808.0,3807.8,0.06288759]
[1641222082469,5.59476374,3808.0,3807.8,0.06288759]
[1641222083269,5.59476374,3808.0,3807.7,0.00170527]
[1641222083468,0.65658,3807.9,3807.7,0.00170527]
[1641222083870,2.96846954,3807.9,3807.7,0.00170527]
[1641222084370,11.4235032,3807.8,3807.7,0.00170527]
[1641222084621,5.45,3807.7,3807.5,2.6]
[1641222084826,0.6567408,3807.7,3807.5,2.6]
[1641222085019,0.6567408,3807.7,3807.2,0.06288801]
[1641222085220,0.6567408,3807.7,3807.1,1.74232199]
[1641222085421,0.6567408,3807.7,3807.3,0.0022737]
[1641222085622,0.65675,3807.6,3807.3,0.0022737]
[1641222085823,0.05891858,3807.1,3805.2,5.974]
[1641222086022,0.07156959,3807.1,3805.2,5.974]
[1641222086221,0.07156959,3807.1,3805.3,0.01136847]
[1641222086424,0.878,3807.0,3805.3,0.01136847]
[1641222086622,3.13624629,3806.9,3805.1,0.01250531]
[1641222086826,0.657,3805.5,3804.8,0.01421058]
[1641222087128,0.65701,3805.4,3804.6,0.01534743]
[1641222088363,0.65701,3805.2,3804.6,0.01534743]
[1641222088568,0.65701,3805.2,3804.4,0.01648428]
[1641222088968,2.94510916,3805.2,3803.9,0.01932639]
[1641222089167,1.0,3805.1,3803.9,0.01932639]
[1641222089367,0.65723,3804.6,3803.5,0.02160009]
[1641222089567,1.31445,3804.7,3803.5,0.02160009]
[1641222089568,0.65722,3804.2,3803.5,0.02160009]
[1641222089773,0.65717,3804.6,3803.5,0.02160009]
[1641222089970,0.65717,3804.6,3803.3,0.02273693]
[1641222090171,1.79246999,3804.6,3803.2,1.20634972]
[1641222090572,1.79246999,3804.6,3803.3,2.70089792]
[1641222090573,0.65711,3804.6,3803.3,2.70089792]
[1641222090874,0.65696,3805.8,3804.1,0.01239029]
[1641222091070,0.65696,3805.8,3804.6,1.0]
[1641222091576,0.65699,3805.4,3804.7,0.01477901]
[1641222091768,1.15768068,3805.3,3804.7,0.01477901]
[1641222092412,1.15768068,3805.3,3804.2,0.378]
[1641222092413,1.15768068,3805.3,3804.3,0.0170527]
[1641222092610,1.15768068,3805.3,3804.3,0.3950527]
[1641222092808,1.15768068,3805.3,3804.3,0.6950527]
[1641222093009,1.15768068,3805.3,3804.4,0.01648428]
[1641222093010,1.31413,3805.1,3804.4,0.01648428]
[1641222093212,0.65709,3805.1,3804.4,0.01648428]
[1641222093411,1.3142194,3805.1,3804.4,0.01648428]
[1641222093613,0.65713,3804.9,3803.9,0.01932639]
[1641222094013,0.65709,3805.1,3803.9,0.01932639]
[1641222094415,1.18833985,3805.3,3803.9,0.01932639]
[1641222094812,1.18833985,3805.3,3803.9,0.39732639]
[1641222095017,1.18833985,3805.3,3803.9,0.69732639]
[1641222095213,1.18833985,3805.3,3804.0,0.01875797]
[1641222095413,1.18833985,3805.3,3804.1,0.378]
[1641222095613,1.18833985,3805.3,3804.1,0.678]
[1641222095905,1.18833985,3805.3,3804.2,0.01762112]
[1641222096099,1.18833985,3805.3,3804.3,0.378]
[1641222096301,1.18833985,3805.3,3804.3,0.678]
[1641222096499,1.18833985,3805.3,3804.4,0.01648428]
[1641222096700,1.18833985,3805.3,3804.4,0.39448428]
[1641222097100,1.18833985,3805.3,3804.5,0.01591585]
[1641222099304,0.65705,3805.1,3804.5,0.01591585]
[1641222099727,1.31417,3805.0,3804.5,0.01591585]
[1641222100528,0.65708,3804.8,3804.5,0.01591585]
[1641222101131,0.03065917,3805.3,3804.5,0.01591585]
[1641222102230,0.65698,3805.2,3804.5,0.01591585]
[1641222103475,0.13819997,3806.6,3804.6,0.378]
[1641222103771,0.05891858,3807.1,3805.2,4.729]
[1641222103970,0.05891858,3807.1,3805.3,4.3359]
[1641222104170,0.05891858,3807.1,3805.3,4.67509636]
[1641222104370,0.05891858,3807.1,3805.4,0.01080004]
[1641222104570,0.05891858,3807.1,3805.7,1.80585236]
[1641222104777,0.05891858,3807.1,3805.8,0.378]
[1641222104972,0.05891858,3807.1,3805.8,0.38652635]
[1641222105175,0.05891858,3807.1,3805.9,0.00795792]
[1641222105375,0.05891858,3807.1,3806.0,0.378]
[1641222105574,0.05891858,3807.1,3806.0,0.678]
[1641222105772,2.41966395,3807.0,3806.6,1.31746275]
[1641222105974,2.41966395,3807.0,3806.7,0.378]
[1641222106273,2.41966395,3807.0,3806.8,0.00284211]
[1641222106674,9.40558054,3806.9,3806.8,0.00284211]
[1641222106879,2.4,3806.8,3806.3,1.74232199]
[1641222107145,0.65694,3806.6,3806.3,1.74232199]
[1641222107345,0.65694,3806.6,3806.4,0.0022737]
[1641222107849,5.71966395,3806.5,3806.4,0.0022737]
[1641222108049,5.71966395,3806.5,3805.3,1.74232199]
[1641222108050,2.41966395,3806.5,3805.3,1.74232199]
[1641222108246,0.65694,3806.0,3805.8,0.00341054]
[1641222108649,1.31388,3805.9,3805.8,0.00341054]
[1641222108851,1.31387,3806.0,3805.8,0.00341054]
[1641222109449,0.65693,3806.0,3805.8,0.00341054]
[1641222109651,0.65683,3806.3,3805.6,0.00454739]
[1641222110051,0.7200547,3806.4,3805.6,0.00454739]
[1641222110457,0.0632447,3806.4,3805.7,0.378]
[1641222110781,2.60915449,3806.2,3805.7,2.45403182]
[1641222111175,0.0632447,3806.4,3805.7,2.65103182]
[1641222111377,0.0632447,3806.4,3806.2,1.77873863]
[1641222111576,0.0632447,3806.4,3806.2,2.37873863]
[1641222111776,0.0632447,3806.4,3806.3,9.528]
[1641222112178,0.0632447,3806.4,3806.3,0.378]
[1641222113180,0.05891858,3807.1,3806.0,0.33237967]
[1641222113382,0.05891858,3807.1,3806.3,0.65658]
[1641222113583,0.05891858,3807.1,3806.4,0.378]
[1641222113584,0.0632438,3806.9,3806.4,0.378]
[1641222113782,0.0632438,3806.9,3806.5,0.378]
[1641222113983,0.0022737,3806.8,3806.6,0.378]
[1641222114182,0.65661,3807.5,3806.6,0.378]
[1641222114632,0.00113684,3807.0,3806.6,0.378]
[1641222115233,0.00113684,3807.0,3806.6,2.75984651]
[1641222115832,0.00113684,3807.0,3806.6,2.45984651]
[1641222116032,1.35219569,3806.9,3806.6,2.75984651]
[1641222116234,1.35219569,3806.9,3806.6,2.45984651]
[1641222116634,1.35219569,3806.9,3806.6,0.678]
[1641222117037,0.00113684,3807.0,3806.6,0.678]
[1641222117236,0.00113684,3807.0,3806.6,0.978]
[1641222117535,0.0306432,3806.9,3806.6,3.578]
[1641222117944,0.0306432,3806.9,3806.6,5.35984651]
[1641222118384,0.0306432,3806.9,3806.6,5.05984651]
[1641222118885,0.0306432,3806.9,3806.6,5.35984651]
[1641222119287,0.0306432,3806.9,3806.6,3.578]
[1641222120290,0.0306432,3806.9,3806.7,1.65652]
[1641222120490,0.0306432,3806.9,3806.8,0.678]
[1641222120892,1.70904208,3808.4,3808.3,1.60376118]
[1641222121090,1.70904208,3808.4,3808.3,2.32062223]
[1641222121392,1.70904208,3808.4,3808.3,2.28176118]
[1641222121593,1.70904208,3808.4,3808.3,2.58176118]
[1641222122019,1.70904208,3808.4,3808.3,3.58176118]
[1641222122219,1.70904208,3808.4,3808.3,2.58176118]
[1641222122419,3.43561945,3809.3,3808.3,2.58176118]
[1641222122420,1.70904208,3809.7,3808.3,3.58176118]
[1641222122620,1.06149427,3809.6,3808.4,1.0]
[1641222122819,1.72177116,3809.7,3808.4,1.3]
[1641222122820,0.00909478,3808.6,3808.4,1.3]
[1641222123224,1.72177116,3809.7,3808.5,0.378]
[1641222123225,0.06276178,3809.5,3808.5,0.378]
[1641222123625,1.57049984,3809.3,3808.5,2.3506726]
[1641222124027,0.00341054,3809.2,3808.5,2.6506726]
[1641222124424,0.00284212,3809.1,3808.6,1.0]
[1641222124628,0.00284212,3809.1,3808.7,0.378]
[1641222124827,0.00284212,3809.1,3808.6,1.6164426]
[1641222124828,1.31519369,3809.0,3808.6,1.6164426]
[1641222125025,0.00227369,3809.0,3808.6,1.3164426]
[1641222125227,0.00170527,3808.9,3808.6,1.3164426]
[1641222125625,0.00113685,3808.8,3808.6,1.3164426]
[1641222126069,0.00454739,3809.4,3808.6,1.3164426]
[1641222126270,0.00454739,3809.4,3808.6,1.6164426]
[1641222126472,1.6612694,3809.0,3808.6,0.3]
[1641222126875,0.00170527,3808.9,3808.4,1.3164426]
[1641222127074,0.00170527,3808.9,3808.7,1.3164426]
[1641222127275,3.50113685,3808.8,3808.7,1.3164426]
[1641222127473,0.00113685,3808.8,3808.7,1.3164426]
[1641222127673,3.60227369,3808.8,3808.7,1.3164426]
[1641222127872,4.88836092,3808.8,3808.7,1.3164426]
[1641222128078,4.26259052,3808.8,3808.7,3.9164426]
[1641222128676,3.60608032,3808.8,3808.7,3.9164426]
[1641222128877,3.63670803,3808.8,3808.7,3.9164426]
[1641222130120,3.63670803,3808.8,3808.7,4.2164426]
[1641222130524,3.64702055,3808.8,3808.7,4.2164426]
[1641222130726,2.99057055,3808.8,3808.7,4.2164426]
[1641222131125,1.70448332,3808.8,3808.7,4.2164426]
[1641222131925,0.04321392,3808.8,3808.7,4.2164426]